[Event "MČR v bleskovém šachu družstev 2019"]
[Site "Teplice, Czech Republic"]
[Date "2019.09.14"]
[Round "6.19"]
[White "Kovar, Vojtech"]
[Black "Vrbata, Zbynek"]
[Result "1/2-1/2"]
[TimeControl "3 mim. + 2 s"]
[BlackTitle "FM"]
[BlackFideId "301256"]
[WhiteElo "2247"]
[BlackElo "2324"]

1. d4 {[%clk 00:03:02]} {[%emt 00:00:01]} Nf6 {[%clk 00:03:03]} {[%emt
00:00:02]} 2. Nf3 {[%clk 00:03:03]} {[%emt 00:00:01]} g6 {[%clk 00:03:04]}
{[%emt 00:00:01]} 3. c3 {[%clk 00:03:04]} Bg7 {[%clk 00:03:04]} {[%emt
00:00:02]} 4. h4 {[%clk 00:03:05]} c5 {[%clk 00:03:02]} {[%emt 00:00:05]} 5. e3
{[%clk 00:03:04]} {[%emt 00:00:02]} cxd4 {[%clk 00:03:00]} {[%emt 00:00:04]} 6.
exd4 {[%clk 00:03:05]} {[%emt 00:00:01]} d5 {[%clk 00:02:59]} {[%emt 00:00:02]}
7. Bd3 {[%clk 00:03:06]} {[%emt 00:00:02]} Nc6 {[%clk 00:02:56]} {[%emt
00:00:05]} 8. Bg5 {[%clk 00:03:07]} {[%emt 00:00:02]} Bg4 {[%clk 00:02:33]}
{[%emt 00:00:25]} 9. Nbd2 {[%clk 00:03:08]} {[%emt 00:00:01]} Qb6 {[%clk
00:02:30]} {[%emt 00:00:05]} 10. Qc2 {[%clk 00:03:08]} {[%emt 00:00:01]} Rc8
{[%clk 00:02:18]} {[%emt 00:00:14]} 11. a3 {[%clk 00:03:09]} {[%emt 00:00:01]}
O-O {[%clk 00:02:02]} {[%emt 00:00:18]} 12. Ne5 {[%clk 00:03:07]} {[%emt
00:00:05]} Nxe5 {[%clk 00:01:59]} {[%emt 00:00:05]} 13. dxe5 {[%clk 00:03:07]}
Nd7 {[%clk 00:02:00]} {[%emt 00:00:01]} 14. f3 {[%clk 00:02:18]} {[%emt
00:00:52]} Be6 {[%clk 00:02:00]} {[%emt 00:00:02]} 15. h5 {[%clk 00:01:49]}
{[%emt 00:00:30]} Nxe5 {[%clk 00:02:01]} 16. hxg6 {[%clk 00:01:42]} {[%emt
00:00:10]} fxg6 {[%clk 00:01:52]} {[%emt 00:00:11]} 17. O-O-O {[%clk 00:01:22]}
{[%emt 00:00:22]} Nxd3+ {[%clk 00:01:43]} {[%emt 00:00:11]} 18. Qxd3 {[%clk
00:01:22]} {[%emt 00:00:01]} Bf5 {[%clk 00:01:32]} {[%emt 00:00:13]} 19. Qxd5+
{[%clk 00:01:23]} {[%emt 00:00:02]} e6 {[%clk 00:01:33]} 20. Qb3 {[%clk
00:01:23]} {[%emt 00:00:02]} Qa6 {[%clk 00:01:22]} {[%emt 00:00:13]} 21. g4
{[%clk 00:01:07]} {[%emt 00:00:18]} Bd3 {[%clk 00:01:21]} {[%emt 00:00:03]} 22.
Ne4 {[%clk 00:01:05]} {[%emt 00:00:04]} Bxe4 {[%clk 00:01:17]} {[%emt
00:00:07]} 23. fxe4 {[%clk 00:01:03]} {[%emt 00:00:04]} Bxc3 {[%clk 00:01:17]}
24. Kb1 {[%clk 00:00:58]} {[%emt 00:00:07]} Bg7 {[%clk 00:01:17]} {[%emt
00:00:03]} 25. Rd7 {[%clk 00:00:55]} {[%emt 00:00:05]} Qc6 {[%clk 00:01:13]}
{[%emt 00:00:05]} 26. Rxb7 {[%clk 00:00:42]} {[%emt 00:00:16]} Qxe4+ {[%clk
00:01:13]} {[%emt 00:00:01]} 27. Ka2 {[%clk 00:00:42]} {[%emt 00:00:02]} Qxh1
{[%clk 00:01:11]} {[%emt 00:00:04]} 28. Qxe6+ {[%clk 00:00:42]} {[%emt
00:00:02]} Kh8 {[%clk 00:01:12]} {[%emt 00:00:01]} 29. Rxg7 {[%clk 00:00:41]}
{[%emt 00:00:04]} Kxg7 {[%clk 00:00:54]} {[%emt 00:00:19]} 30. Qe5+ {[%clk
00:00:41]} {[%emt 00:00:03]} Kg8 {[%clk 00:00:51]} {[%emt 00:00:04]} 31. Qe6+
{[%clk 00:00:42]} Kg7 {[%clk 00:00:49]} {[%emt 00:00:04]} 32. Qe5+ {[%clk
00:00:43]} Kf7 {[%clk 00:00:47]} {[%emt 00:00:04]} 33. Qe7+ {[%clk 00:00:44]}
{[%emt 00:00:02]} Kg8 {[%clk 00:00:48]} {[%emt 00:00:01]} 34. Qe6+ {[%clk
00:00:44]} Kg7 {[%clk 00:00:46]} {[%emt 00:00:04]} 35. Qe5+ {[%clk 00:00:45]}
{[%emt 00:00:02]} Kg8 {[%clk 00:00:45]} {[%emt 00:00:02]} 36. Qe6+ {[%clk
00:00:43]} {[%emt 00:00:04]} Kg7 {[%clk 00:00:47]} 37. Qe5+ {[%clk 00:00:40]}
{[%emt 00:00:05]} Kg8 {[%clk 00:00:47]} {[%emt 00:00:02]} 38. Qe6+ {[%clk
00:00:40]} {[%emt 00:00:02]} Kg7 {[%clk 00:00:49]} {[%emt 00:00:01]} 39. Qe5+
Rcd8 {[%emt 00:00:02]} 1/2-1/2

[Event "MČR v bleskovém šachu družstev 2019"]
[Site "Teplice, Czech Republic"]
[Date "2019.09.14"]
[Round "6.21"]
[White "Formanek, Martin"]
[Black "Sykora, Ondrej"]
[Result "1-0"]
[TimeControl "3 mim. + 2 s"]
[WhiteFideId "316768"]
[WhiteElo "2230"]
[BlackElo "2122"]

1. e4 {[%clk 00:03:03]} {[%emt 00:00:01]} e5 {[%clk 00:03:04]} {[%emt
00:00:02]} 2. Nf3 {[%clk 00:03:03]} Nc6 {[%clk 00:03:05]} 3. Bb5 {[%clk
00:03:01]} {[%emt 00:00:05]} a6 {[%clk 00:03:01]} {[%emt 00:00:06]} 4. Ba4
{[%clk 00:03:02]} {[%emt 00:00:01]} d6 {[%clk 00:03:02]} 5. O-O {[%clk
00:02:59]} {[%emt 00:00:06]} Nf6 {[%clk 00:02:59]} {[%emt 00:00:05]} 6. d3
{[%clk 00:02:59]} {[%emt 00:00:03]} Be7 {[%clk 00:02:59]} {[%emt 00:00:01]} 7.
c3 {[%clk 00:02:59]} {[%emt 00:00:01]} O-O {[%clk 00:02:59]} {[%emt 00:00:02]}
8. Re1 {[%clk 00:02:57]} {[%emt 00:00:05]} Bg4 {[%clk 00:02:59]} {[%emt
00:00:02]} 9. Nbd2 {[%clk 00:02:57]} {[%emt 00:00:01]} h6 {[%clk 00:02:53]}
{[%emt 00:00:09]} 10. Nf1 {[%clk 00:02:51]} {[%emt 00:00:07]} Nh7 {[%clk
00:02:48]} {[%emt 00:00:06]} 11. h3 {[%clk 00:02:50]} {[%emt 00:00:04]} Bh5
{[%clk 00:02:48]} {[%emt 00:00:02]} 12. Ng3 {[%clk 00:02:50]} {[%emt 00:00:02]}
Bg6 {[%clk 00:02:49]} 13. d4 {[%clk 00:02:40]} {[%emt 00:00:13]} Bf6 {[%clk
00:02:27]} {[%emt 00:00:24]} 14. Bxc6 {[%clk 00:01:59]} {[%emt 00:00:43]} bxc6
{[%clk 00:02:28]} {[%emt 00:00:02]} 15. dxe5 {[%clk 00:01:59]} dxe5 {[%clk
00:02:28]} {[%emt 00:00:02]} 16. Qa4 {[%clk 00:01:44]} {[%emt 00:00:17]} Qd6
{[%clk 00:02:08]} {[%emt 00:00:21]} 17. Be3 {[%clk 00:01:33]} {[%emt 00:00:14]}
Rfb8 {[%clk 00:02:04]} {[%emt 00:00:07]} 18. b3 {[%clk 00:01:25]} {[%emt
00:00:09]} Ng5 {[%clk 00:01:51]} {[%emt 00:00:15]} 19. Nxg5 {[%clk 00:01:18]}
{[%emt 00:00:09]} hxg5 {[%clk 00:01:44]} {[%emt 00:00:09]} 20. Qc4 {[%clk
00:01:09]} {[%emt 00:00:11]} Qe6 {[%clk 00:01:36]} {[%emt 00:00:10]} 21. Qxe6
{[%clk 00:01:04]} {[%emt 00:00:07]} fxe6 {[%clk 00:01:37]} {[%emt 00:00:01]} 22.
Red1 {[%clk 00:00:58]} {[%emt 00:00:08]} Rd8 {[%clk 00:01:38]} {[%emt
00:00:01]} 23. Kf1 {[%clk 00:00:57]} {[%emt 00:00:03]} Kf7 {[%clk 00:01:31]}
{[%emt 00:00:09]} 24. Ke2 {[%clk 00:00:57]} {[%emt 00:00:02]} Ke8 {[%clk
00:01:32]} {[%emt 00:00:01]} 25. Rxd8+ {[%clk 00:00:57]} Rxd8 {[%clk 00:01:33]}
26. Rd1 {[%clk 00:00:57]} {[%emt 00:00:02]} Rxd1 {[%clk 00:01:34]} 27. Kxd1
{[%clk 00:00:58]} {[%emt 00:00:01]} Kd7 {[%clk 00:01:35]} 28. Ke2 {[%clk
00:00:59]} {[%emt 00:00:01]} Be7 {[%clk 00:01:34]} {[%emt 00:00:03]} 29. Kf3
{[%clk 00:01:00]} {[%emt 00:00:01]} c5 {[%clk 00:01:15]} {[%emt 00:00:22]} 30.
Kg4 {[%clk 00:00:51]} {[%emt 00:00:10]} c4 {[%clk 00:00:54]} {[%emt 00:00:23]}
31. b4 {[%clk 00:00:47]} {[%emt 00:00:06]} Kc6 {[%clk 00:00:55]} {[%emt
00:00:02]} 32. a4 {[%clk 00:00:46]} {[%emt 00:00:03]} Kb7 {[%clk 00:00:43]}
{[%emt 00:00:14]} 33. Bxg5 {[%clk 00:00:45]} {[%emt 00:00:02]} Bf8 {[%emt
00:00:05]} 34. Kf3 {[%clk 00:00:27]} {[%emt 00:00:18]} c5 {[%clk 00:00:40]}
{[%emt 00:00:04]} 35. b5 {[%clk 00:00:17]} {[%emt 00:00:11]} axb5 {[%clk
00:00:38]} {[%emt 00:00:05]} 36. axb5 {[%clk 00:00:19]} {[%emt 00:00:01]} Kb6
{[%clk 00:00:39]} {[%emt 00:00:01]} 37. Ke3 {[%clk 00:00:07]} {[%emt 00:00:13]}
Kxb5 {[%clk 00:00:40]} {[%emt 00:00:02]} 38. f3 {[%clk 00:00:06]} {[%emt
00:00:02]} Ka4 {[%emt 00:00:19]} 39. Kd2 Kb3 {[%clk 00:00:23]} {[%emt
00:00:01]} 40. Nf1 {[%clk 00:00:09]} Bd6 {[%clk 00:00:22]} {[%emt 00:00:04]} 41.
Bd8 {[%clk 00:00:06]} {[%emt 00:00:04]} Be8 {[%clk 00:00:16]} {[%emt 00:00:08]}
42. Ne3 {[%clk 00:00:07]} {[%emt 00:00:02]} Kb2 {[%clk 00:00:07]} {[%emt
00:00:11]} 43. Nd1+ {[%clk 00:00:08]} {[%emt 00:00:01]} Kb3 {[%clk 00:00:07]}
44. Ne3 {[%clk 00:00:06]} {[%emt 00:00:04]} Bf8 {[%clk 00:00:08]} {[%emt
00:00:02]} 45. g4 {[%clk 00:00:06]} g6 {[%clk 00:00:08]} {[%emt 00:00:02]} 46.
h4 {[%clk 00:00:08]} Bh6 {[%clk 00:00:09]} {[%emt 00:00:01]} 47. g5 {[%clk
00:00:08]} Bg7 {[%clk 00:00:10]} {[%emt 00:00:02]} 48. Bf6 {[%clk 00:00:09]}
{[%emt 00:00:01]} Bf8 {[%clk 00:00:11]} 49. Bxe5 {[%clk 00:00:10]} Be7 {[%clk
00:00:12]} {[%emt 00:00:01]} 50. Bf6 {[%clk 00:00:11]} Bd6 {[%clk 00:00:13]}
{[%emt 00:00:01]} 51. e5 {[%clk 00:00:11]} {[%emt 00:00:02]} Bc7 {[%clk
00:00:14]} 52. Nd1 {[%clk 00:00:09]} {[%emt 00:00:04]} Ba5 {[%clk 00:00:12]}
{[%emt 00:00:05]} 53. Be7 {[%clk 00:00:10]} {[%emt 00:00:01]} Bc6 {[%clk
00:00:12]} {[%emt 00:00:01]} 54. Bxc5 {[%clk 00:00:10]} {[%emt 00:00:02]} Bxf3
{[%clk 00:00:14]} 55. Bd4 {[%clk 00:00:11]} {[%emt 00:00:01]} Bh5 {[%clk
00:00:15]} {[%emt 00:00:01]} 56. Ne3 {[%clk 00:00:12]} Bc7 {[%clk 00:00:15]}
{[%emt 00:00:02]} 57. Ng2 {[%clk 00:00:12]} {[%emt 00:00:02]} Bd8 {[%clk
00:00:15]} {[%emt 00:00:02]} 58. Nf4 {[%clk 00:00:13]} Bf3 {[%clk 00:00:08]}
{[%emt 00:00:09]} 59. Nxg6 {[%clk 00:00:14]} {[%emt 00:00:01]} Be4 {[%clk
00:00:09]} {[%emt 00:00:01]} 60. Nf4 {[%clk 00:00:15]} Be7 {[%clk 00:00:10]}
{[%emt 00:00:02]} 61. Nxe6 {[%clk 00:00:15]} Kb2 {[%clk 00:00:09]} {[%emt
00:00:03]} 62. Nc5 {[%clk 00:00:15]} {[%emt 00:00:02]} Bf5 {[%clk 00:00:08]}
{[%emt 00:00:03]} 63. Nb7 {[%clk 00:00:13]} {[%emt 00:00:04]} Kb3 {[%clk
00:00:05]} {[%emt 00:00:05]} 64. Nd6 {[%clk 00:00:14]} {[%emt 00:00:01]} 1-0

[Event "MČR v bleskovém šachu družstev 2019"]
[Site "Teplice, Czech Republic"]
[Date "2019.09.14"]
[Round "6.22"]
[White "Hacha, Ales"]
[Black "Dvorak, Jan"]
[Result "1/2-1/2"]
[TimeControl "3 mim. + 2 s"]
[BlackFideId "314870"]
[WhiteElo "2065"]
[BlackElo "2229"]

1. e4 {[%clk 00:03:02]} {[%emt 00:00:01]} e6 {[%clk 00:03:04]} 2. Nf3 {[%clk
00:03:03]} {[%emt 00:00:01]} d5 {[%clk 00:03:04]} {[%emt 00:00:01]} 3. exd5
{[%clk 00:03:04]} exd5 {[%clk 00:03:05]} {[%emt 00:00:02]} 4. d4 {[%clk
00:03:05]} {[%emt 00:00:01]} Bd6 {[%clk 00:03:03]} {[%emt 00:00:04]} 5. Be2
{[%clk 00:03:06]} {[%emt 00:00:01]} Nc6 {[%clk 00:03:01]} {[%emt 00:00:04]} 6.
O-O {[%clk 00:03:07]} {[%emt 00:00:01]} Nge7 {[%clk 00:03:01]} {[%emt
00:00:02]} 7. c4 {[%clk 00:03:07]} {[%emt 00:00:02]} dxc4 {[%clk 00:02:53]}
{[%emt 00:00:10]} 8. Nc3 {[%clk 00:03:07]} {[%emt 00:00:02]} O-O {[%clk
00:02:51]} {[%emt 00:00:04]} 9. Bxc4 {[%clk 00:03:07]} {[%emt 00:00:02]} Bg4
{[%clk 00:02:42]} {[%emt 00:00:11]} 10. Be3 {[%clk 00:02:40]} {[%emt 00:00:30]}
Ng6 {[%clk 00:02:35]} {[%emt 00:00:09]} 11. h3 {[%clk 00:02:39]} {[%emt
00:00:02]} Bd7 {[%clk 00:02:23]} {[%emt 00:00:13]} 12. Bg5 {[%clk 00:02:35]}
{[%emt 00:00:07]} Be7 {[%clk 00:02:20]} {[%emt 00:00:05]} 13. Bxe7 {[%clk
00:02:33]} {[%emt 00:00:04]} Ncxe7 {[%clk 00:02:15]} {[%emt 00:00:07]} 14. Re1
{[%clk 00:02:30]} {[%emt 00:00:06]} Nf5 {[%clk 00:02:04]} {[%emt 00:00:12]} 15.
d5 {[%clk 00:02:16]} {[%emt 00:00:16]} Nd6 {[%clk 00:02:04]} {[%emt 00:00:02]}
16. Bb3 {[%clk 00:02:16]} {[%emt 00:00:02]} Qf6 {[%clk 00:01:55]} {[%emt
00:00:11]} 17. Qd4 {[%clk 00:02:15]} {[%emt 00:00:04]} Qxd4 {[%clk 00:01:44]}
{[%emt 00:00:12]} 18. Nxd4 {[%clk 00:02:16]} {[%emt 00:00:01]} Rfe8 {[%clk
00:01:45]} 19. Rad1 {[%clk 00:01:43]} {[%emt 00:00:35]} Kf8 {[%clk 00:01:36]}
{[%emt 00:00:10]} 20. Ba4 {[%clk 00:01:28]} {[%emt 00:00:18]} Bxa4 {[%clk
00:01:31]} {[%emt 00:00:07]} 21. Nxa4 {[%clk 00:01:29]} Nf4 {[%clk 00:01:27]}
{[%emt 00:00:07]} 22. Nc3 {[%clk 00:01:13]} {[%emt 00:00:18]} a6 {[%clk
00:01:15]} {[%emt 00:00:13]} 23. h4 {[%clk 00:01:14]} {[%emt 00:00:01]} Rad8
{[%clk 00:01:10]} {[%emt 00:00:07]} 24. g3 {[%clk 00:01:15]} Rxe1+ {[%clk
00:01:06]} {[%emt 00:00:07]} 25. Rxe1 {[%clk 00:01:17]} {[%emt 00:00:01]} Nd3
{[%clk 00:01:07]} 26. Re2 {[%clk 00:01:18]} Re8 {[%clk 00:00:56]} {[%emt
00:00:14]} 27. Rd2 {[%clk 00:01:12]} {[%emt 00:00:08]} Ne5 {[%clk 00:00:52]}
{[%emt 00:00:06]} 28. Kg2 {[%clk 00:01:10]} {[%emt 00:00:04]} Nec4 {[%clk
00:00:48]} {[%emt 00:00:06]} 29. Rc2 {[%clk 00:01:11]} {[%emt 00:00:02]} Nb6
{[%clk 00:00:44]} {[%emt 00:00:05]} 30. b3 {[%clk 00:01:02]} {[%emt 00:00:11]}
Re5 {[%clk 00:00:40]} {[%emt 00:00:07]} 31. Re2 {[%clk 00:01:02]} {[%emt
00:00:02]} Rxe2 {[%clk 00:00:36]} {[%emt 00:00:06]} 32. Ndxe2 {[%clk 00:01:03]}
Nb5 {[%clk 00:00:32]} {[%emt 00:00:05]} 33. Kf3 {[%clk 00:00:55]} {[%emt
00:00:10]} Nxc3 {[%clk 00:00:25]} {[%emt 00:00:08]} 34. Nxc3 {[%clk 00:00:56]}
{[%emt 00:00:02]} Ke7 {[%clk 00:00:27]} 35. Ke4 {[%clk 00:00:57]} {[%emt
00:00:02]} Kd6 {[%clk 00:00:18]} {[%emt 00:00:11]} 36. Kd4 {[%clk 00:00:58]}
{[%emt 00:00:01]} c5+ {[%clk 00:00:17]} {[%emt 00:00:02]} 37. dxc6 {[%clk
00:00:58]} {[%emt 00:00:02]} Kxc6 {[%clk 00:00:18]} {[%emt 00:00:01]} 38. Ne4
{[%clk 00:00:56]} {[%emt 00:00:04]} h6 {[%clk 00:00:17]} {[%emt 00:00:03]} 39.
f4 {[%clk 00:00:51]} {[%emt 00:00:07]} Nd5 {[%clk 00:00:17]} {[%emt 00:00:01]}
40. Nd2 {[%clk 00:00:49]} {[%emt 00:00:05]} Nf6 {[%clk 00:00:17]} {[%emt
00:00:02]} 41. Ne4 {[%clk 00:00:48]} {[%emt 00:00:03]} Nd5 {[%clk 00:00:15]}
{[%emt 00:00:03]} 42. f5 {[%clk 00:00:47]} {[%emt 00:00:04]} Ne7 {[%clk
00:00:15]} {[%emt 00:00:02]} 43. f6 {[%clk 00:00:48]} {[%emt 00:00:02]} gxf6
{[%clk 00:00:15]} {[%emt 00:00:02]} 44. Nxf6 {[%clk 00:00:49]} {[%emt
00:00:01]} Nf5+ {[%clk 00:00:16]} 45. Ke5 {[%clk 00:00:49]} {[%emt 00:00:02]}
Nxg3 {[%clk 00:00:17]} 46. Ng4 {[%clk 00:00:50]} {[%emt 00:00:01]} h5 {[%clk
00:00:18]} {[%emt 00:00:02]} 47. Nf6 {[%clk 00:00:50]} {[%emt 00:00:01]} Kc5
{[%clk 00:00:17]} {[%emt 00:00:03]} 48. Kf4 {[%clk 00:00:51]} {[%emt 00:00:02]}
Ne2+ {[%clk 00:00:18]} {[%emt 00:00:01]} 49. Ke3 {[%clk 00:00:51]} {[%emt
00:00:01]} 1/2-1/2

[Event "MČR v bleskovém šachu družstev 2019"]
[Site "Teplice, Czech Republic"]
[Date "2019.09.14"]
[Round "6.23"]
[White "Kopta, Pavel"]
[Black "Zima, Jan"]
[Result "0-1"]
[TimeControl "3 mim. + 2 s"]
[WhiteTitle "FM"]
[WhiteFideId "309109"]
[WhiteElo "2234"]
[BlackElo "2048"]

1. d4 {[%clk 00:03:03]} Nf6 {[%clk 00:03:03]} {[%emt 00:00:02]} 2. c4 {[%clk
00:03:03]} {[%emt 00:00:01]} g6 {[%clk 00:03:04]} {[%emt 00:00:01]} 3. Nc3
{[%clk 00:03:04]} {[%emt 00:00:01]} d5 {[%clk 00:03:06]} {[%emt 00:00:01]} 4.
Bf4 {[%clk 00:03:04]} {[%emt 00:00:02]} Bg7 {[%clk 00:03:06]} {[%emt 00:00:01]}
5. Rc1 {[%clk 00:03:04]} {[%emt 00:00:02]} dxc4 {[%clk 00:02:34]} {[%emt
00:00:35]} 6. e4 {[%clk 00:02:56]} {[%emt 00:00:09]} c5 {[%clk 00:02:24]}
{[%emt 00:00:12]} 7. d5 {[%clk 00:02:51]} {[%emt 00:00:07]} Qa5 {[%clk
00:01:58]} {[%emt 00:00:28]} 8. Bxc4 {[%clk 00:02:25]} {[%emt 00:00:29]} Nxe4
{[%clk 00:01:34]} {[%emt 00:00:25]} 9. Qa4+ {[%clk 00:02:21]} {[%emt 00:00:06]}
Qxa4 {[%clk 00:01:32]} {[%emt 00:00:05]} 10. Nxa4 {[%clk 00:02:22]} {[%emt
00:00:01]} Bd7 {[%clk 00:01:23]} {[%emt 00:00:10]} 11. Nc3 {[%clk 00:02:11]}
{[%emt 00:00:13]} Nxc3 {[%clk 00:01:24]} {[%emt 00:00:01]} 12. bxc3 {[%clk
00:02:12]} b5 {[%clk 00:01:19]} {[%emt 00:00:07]} 13. Bd3 {[%clk 00:02:07]}
{[%emt 00:00:07]} Na6 {[%clk 00:01:11]} {[%emt 00:00:11]} 14. Ne2 {[%clk
00:01:58]} {[%emt 00:00:10]} c4 {[%clk 00:01:12]} {[%emt 00:00:02]} 15. Be4
{[%clk 00:01:59]} Nc5 {[%clk 00:01:13]} 16. f3 {[%clk 00:01:47]} {[%emt
00:00:14]} O-O {[%clk 00:01:07]} {[%emt 00:00:08]} 17. O-O {[%clk 00:01:43]}
{[%emt 00:00:06]} Rfd8 {[%clk 00:00:36]} {[%emt 00:00:33]} 18. Rfd1 {[%clk
00:01:43]} {[%emt 00:00:01]} Rac8 {[%clk 00:00:30]} {[%emt 00:00:08]} 19. Be3
{[%clk 00:01:38]} {[%emt 00:00:07]} a6 {[%clk 00:00:29]} {[%emt 00:00:03]} 20.
Kf2 {[%clk 00:01:33]} {[%emt 00:00:07]} Kf8 {[%clk 00:00:30]} {[%emt 00:00:01]}
21. Nd4 {[%clk 00:01:25]} {[%emt 00:00:10]} Be8 {[%clk 00:00:24]} {[%emt
00:00:09]} 22. g4 {[%clk 00:01:13]} {[%emt 00:00:13]} h6 {[%clk 00:00:21]}
{[%emt 00:00:06]} 23. h4 {[%clk 00:01:14]} {[%emt 00:00:01]} e5 {[%clk
00:00:15]} {[%emt 00:00:08]} 24. Nc6 {[%clk 00:01:01]} {[%emt 00:00:15]} Bxc6
{[%clk 00:00:15]} {[%emt 00:00:02]} 25. dxc6 {[%clk 00:01:02]} Nxe4+ {[%clk
00:00:15]} {[%emt 00:00:02]} 26. fxe4 {[%clk 00:01:02]} {[%emt 00:00:01]} Rxd1
{[%clk 00:00:15]} {[%emt 00:00:02]} 27. Rxd1 {[%clk 00:01:04]} Rxc6 {[%clk
00:00:14]} {[%emt 00:00:03]} 28. Rd7 {[%clk 00:01:03]} {[%emt 00:00:03]} Bf6
{[%clk 00:00:13]} {[%emt 00:00:03]} 29. g5 {[%clk 00:01:02]} {[%emt 00:00:02]}
hxg5 {[%clk 00:00:11]} {[%emt 00:00:04]} 30. hxg5 {[%clk 00:01:04]} Bg7 {[%clk
00:00:11]} {[%emt 00:00:03]} 31. Rb7 {[%clk 00:01:03]} {[%emt 00:00:02]} Ke8
{[%clk 00:00:12]} {[%emt 00:00:02]} 32. Ke2 {[%clk 00:01:03]} {[%emt 00:00:02]}
Bf8 {[%clk 00:00:10]} {[%emt 00:00:04]} 33. Rb8+ {[%clk 00:01:01]} {[%emt
00:00:03]} Ke7 {[%clk 00:00:12]} 34. Rb7+ {[%clk 00:01:02]} {[%emt 00:00:02]}
Ke6 {[%clk 00:00:12]} {[%emt 00:00:01]} 35. Bb6 {[%clk 00:00:59]} {[%emt
00:00:06]} Be7 {[%clk 00:00:11]} {[%emt 00:00:03]} 36. Be3 {[%clk 00:00:58]}
{[%emt 00:00:03]} Bd8 {[%clk 00:00:09]} {[%emt 00:00:04]} 37. Kf3 {[%clk
00:00:55]} {[%emt 00:00:05]} f5 {[%clk 00:00:08]} {[%emt 00:00:03]} 38. exf5+
{[%clk 00:00:52]} {[%emt 00:00:05]} Kxf5 {[%clk 00:00:07]} {[%emt 00:00:03]} 39.
Rf7+ {[%clk 00:00:53]} Ke6 {[%clk 00:00:08]} 40. Rg7 {[%clk 00:00:54]} {[%emt
00:00:01]} Kf5 {[%clk 00:00:07]} {[%emt 00:00:03]} 41. Rf7+ {[%clk 00:00:55]}
Ke6 {[%clk 00:00:09]} 42. Rg7 {[%clk 00:00:57]} Kd5 {[%clk 00:00:10]} 43. Rd7+
{[%clk 00:00:54]} {[%emt 00:00:06]} Rd6 {[%clk 00:00:11]} 44. Rg7 {[%clk
00:00:53]} {[%emt 00:00:04]} Bb6 {[%clk 00:00:12]} {[%emt 00:00:01]} 45. Bd2
{[%clk 00:00:53]} {[%emt 00:00:02]} a5 {[%clk 00:00:13]} 46. Rf7 {[%clk
00:00:53]} {[%emt 00:00:02]} e4+ {[%clk 00:00:13]} {[%emt 00:00:02]} 47. Ke2
{[%clk 00:00:53]} {[%emt 00:00:02]} Bc5 {[%clk 00:00:10]} {[%emt 00:00:05]} 48.
Re7 {[%clk 00:00:50]} {[%emt 00:00:04]} b4 {[%clk 00:00:10]} {[%emt 00:00:03]}
49. Bf4 {[%clk 00:00:50]} {[%emt 00:00:01]} b3 {[%clk 00:00:09]} {[%emt
00:00:03]} 50. axb3 {[%clk 00:00:47]} {[%emt 00:00:05]} cxb3 {[%clk 00:00:10]}
51. Bxd6 {[%clk 00:00:47]} {[%emt 00:00:02]} Bxd6 {[%clk 00:00:11]} {[%emt
00:00:01]} 52. Rb7 {[%emt 00:00:01]} a4 53. Kd2 {[%clk 00:00:46]} {[%emt
00:00:04]} Bf4+ {[%clk 00:00:13]} {[%emt 00:00:02]} 54. Kd1 {[%clk 00:00:46]}
{[%emt 00:00:02]} Bxg5 {[%clk 00:00:14]} {[%emt 00:00:01]} 55. Rg7 {[%clk
00:00:46]} {[%emt 00:00:02]} a3 {[%clk 00:00:13]} {[%emt 00:00:03]} 56. Rb7
{[%clk 00:00:45]} {[%emt 00:00:02]} b2 {[%clk 00:00:13]} {[%emt 00:00:02]} 57.
Kc2 {[%clk 00:00:47]} Bf6 {[%clk 00:00:12]} {[%emt 00:00:03]} 58. Rb6 {[%clk
00:00:47]} {[%emt 00:00:02]} Ke5 {[%clk 00:00:12]} {[%emt 00:00:02]} 59. Ra6
{[%clk 00:00:47]} {[%emt 00:00:02]} Be7 {[%clk 00:00:12]} {[%emt 00:00:01]} 60.
Rxg6 {[%clk 00:00:48]} {[%emt 00:00:02]} Kf4 {[%clk 00:00:12]} {[%emt
00:00:01]} 61. Re6 {[%clk 00:00:49]} {[%emt 00:00:02]} Bc5 {[%clk 00:00:13]}
{[%emt 00:00:01]} 62. Rc6 {[%clk 00:00:50]} {[%emt 00:00:01]} Be7 {[%clk
00:00:13]} {[%emt 00:00:02]} 63. Re6 {[%clk 00:00:51]} {[%emt 00:00:01]} Bc5
{[%clk 00:00:12]} {[%emt 00:00:03]} 64. Rc6 {[%clk 00:00:52]} {[%emt 00:00:01]}
e3 {[%clk 00:00:08]} {[%emt 00:00:06]} 65. Rxc5 {[%clk 00:00:53]} e2 {[%clk
00:00:09]} {[%emt 00:00:01]} 66. Rc4+ {[%clk 00:00:48]} {[%emt 00:00:06]} Kf3
{[%clk 00:00:08]} {[%emt 00:00:03]} 0-1

[Event "MČR v bleskovém šachu družstev 2019"]
[Site "Teplice, Czech Republic"]
[Date "2019.09.14"]
[Round "6.24"]
[White "Broucek, Tomas"]
[Black "Chmel, Kristian"]
[Result "0-1"]
[TimeControl "3 mim. + 2 s"]
[BlackFideId "344281"]
[WhiteElo "2044"]
[BlackElo "2097"]

1. d4 {[%clk 00:03:02]} {[%emt 00:00:02]} Nf6 {[%clk 00:03:03]} {[%emt
00:00:01]} 2. Nf3 {[%clk 00:03:03]} g6 {[%clk 00:03:05]} 3. e3 {[%clk
00:03:04]} {[%emt 00:00:02]} Bg7 {[%clk 00:03:05]} 4. Bd3 {[%clk 00:03:05]}
{[%emt 00:00:01]} O-O {[%clk 00:03:04]} {[%emt 00:00:03]} 5. O-O {[%clk
00:03:05]} {[%emt 00:00:01]} d6 {[%clk 00:02:55]} {[%emt 00:00:12]} 6. e4
{[%clk 00:03:03]} {[%emt 00:00:04]} c5 {[%clk 00:02:51]} {[%emt 00:00:06]} 7.
dxc5 {[%clk 00:02:08]} {[%emt 00:00:58]} dxc5 {[%clk 00:02:51]} {[%emt
00:00:02]} 8. Nc3 {[%clk 00:01:58]} {[%emt 00:00:12]} Nc6 {[%clk 00:02:48]}
{[%emt 00:00:04]} 9. Be3 {[%clk 00:01:52]} {[%emt 00:00:08]} b6 {[%clk
00:02:41]} {[%emt 00:00:09]} 10. Bb5 {[%clk 00:01:14]} {[%emt 00:00:40]} Nb4
{[%clk 00:02:11]} {[%emt 00:00:32]} 11. Qe2 {[%clk 00:00:50]} {[%emt 00:00:26]}
Bb7 {[%clk 00:01:24]} {[%emt 00:00:49]} 12. Bf4 {[%clk 00:00:45]} {[%emt
00:00:07]} a6 {[%clk 00:01:18]} {[%emt 00:00:08]} 13. Bc4 {[%clk 00:00:44]}
{[%emt 00:00:03]} b5 {[%clk 00:01:13]} {[%emt 00:00:07]} 14. Rad1 {[%clk
00:00:34]} {[%emt 00:00:12]} Qc8 {[%clk 00:01:04]} {[%emt 00:00:11]} 15. Bd5
{[%clk 00:00:18]} {[%emt 00:00:18]} Nbxd5 {[%clk 00:00:52]} {[%emt 00:00:14]}
16. Nxd5 {[%clk 00:00:10]} {[%emt 00:00:10]} Nxd5 {[%clk 00:00:49]} {[%emt
00:00:05]} 17. exd5 {[%clk 00:00:11]} {[%emt 00:00:01]} Qf5 {[%clk 00:00:39]}
{[%emt 00:00:11]} 0-1